bitfinex/quotes_ETHUSD_20260103
["timestamp","ask_amount","ask_price","bid_price","bid_amount"]
[1767454213622,0.002,3103.5,3103.0,0.846]
[1767454214018,1.88301947,3103.5,3103.0,0.846]
[1767454218922,1.88301947,3103.5,3103.0,4.06866894]
[1767454219097,0.002,3103.5,3103.0,6.37326237]
[1767454222022,0.002,3103.5,3103.1,2.30459343]
[1767454224235,0.002,3103.5,3103.1,5.52717571]
[1767454232437,0.002,3103.5,3103.2,2.33954037]
[1767454236663,0.002,3103.5,3103.0,4.06864754]
[1767454237560,1.88301947,3103.5,3103.0,4.06864754]
[1767454237957,1.88301947,3103.5,3103.1,3.22255731]
[1767454238141,0.002,3103.5,3103.1,3.22255731]
[1767454238337,0.002,3103.9,3103.2,3.22326129]
[1767454238533,1.83992254,3103.9,3103.2,3.22326129]
[1767454238745,1.83992254,3103.9,3103.2,0.00080312]
[1767454239047,1.83792254,3103.8,3103.2,0.00080312]
[1767454242772,1.83992254,3103.8,3103.2,0.00080312]
[1767454242971,1.83992254,3103.8,3103.3,0.62920175]
[1767454245378,0.002,3103.9,3103.3,3.85153767]
[1767454245672,0.002,3104.3,3103.9,2.33954037]
[1767454246246,0.0008024,3104.4,3104.0,2.33954037]
[1767454246451,1.83992254,3104.8,3104.2,2.33954037]
[1767454246652,0.002,3104.8,3104.3,2.89564898]
[1767454248877,0.002,3104.8,3104.4,3.22123437]
[1767454249083,0.002,3104.8,3104.4,5.56077474]
[1767454250852,0.002,3104.8,3104.4,2.33954037]
[1767454252378,0.002,3104.8,3104.4,5.5607645]
[1767454252598,0.002,3104.8,3104.5,0.40592716]
[1767454253081,0.002,3104.8,3104.5,2.74546753]
[1767454253283,0.002,3104.8,3104.5,5.96656897]
[1767454253779,0.002,3104.8,3104.5,2.74546753]
[1767454255775,0.002,3104.8,3104.5,0.40592716]
[1767454256585,1.83992254,3104.8,3104.3,0.55610861]
[1767454256784,1.83992254,3104.8,3104.2,0.845]
[1767454258288,1.83792254,3104.7,3104.0,0.00080248]
[1767454259576,1.83792254,3104.6,3104.0,0.00080248]
[1767454260383,3.22286207,3104.8,3104.0,2.28363642]
[1767454260583,0.32255394,3104.7,3104.0,2.28363642]
[1767454261257,3.22286207,3104.8,3104.0,2.28363642]
[1767454261460,0.002,3104.7,3104.0,2.28363642]
[1767454262998,0.002,3104.7,3104.1,2.28283394]
[1767454263986,0.002,3104.7,3104.2,2.28283394]
[1767454264499,1.83992254,3104.7,3104.0,6.35024301]
[1767454264798,1.83992254,3104.7,3104.0,3.12863642]
[1767454267001,1.83992254,3104.7,3103.7,3.22194105]
[1767454267002,2.27675976,3104.4,3103.7,6.34972638]
[1767454267366,2.27675976,3104.4,3103.8,2.28283394]
[1767454267669,2.27675976,3104.4,3103.7,4.06689244]
[1767454267670,0.002,3104.7,3104.4,2.28283394]
[1767454268866,0.002,3104.7,3104.5,2.28283394]
[1767454269087,0.002,3104.7,3104.6,2.28283394]
[1767454270417,0.002,3104.7,3104.4,5.50398817]
[1767454272314,0.002,3104.7,3104.4,2.28283394]
[1767454272610,0.002,3104.7,3104.2,6.34927477]
[1767454272816,0.002,3104.7,3104.3,3.22133061]
[1767454273415,2.27795728,3104.7,3104.2,0.845]
[1767454273620,2.50623325,3104.7,3104.1,3.22146945]
[1767454273910,2.50623325,3104.7,3104.0,4.06841841]
[1767454274116,2.50623325,3104.7,3103.7,2.28283394]
[1767454274316,2.27595728,3104.3,3103.6,2.28363642]
[1767454274503,0.00080256,3104.4,3103.9,2.28283394]
[1767454275414,0.00080256,3104.4,3103.9,5.50456479]
[1767454275621,0.00080256,3104.4,3104.0,2.28283394]
[1767454279519,0.00080256,3104.4,3103.8,5.5046564]
[1767454279816,2.27675984,3104.4,3103.8,5.5046564]
[1767454279990,2.27675984,3104.4,3104.0,0.001]
[1767454281603,0.00080256,3104.4,3104.0,0.001]
[1767454286613,2.27675984,3104.4,3104.0,0.001]
[1767454286816,2.50443582,3104.4,3104.0,0.001]
[1767454288426,2.50643582,3104.4,3104.0,0.001]
[1767454289062,2.27595728,3104.3,3103.6,0.00080248]
[1767454289227,2.316224,3104.3,3103.6,0.00080248]
[1767454291119,2.26264624,3104.2,3103.6,0.00080248]
[1767454291319,2.26264624,3104.1,3103.6,0.00080248]
[1767454291918,0.00280256,3104.4,3103.9,2.41773862]
[1767454292116,0.002,3104.7,3104.1,2.41773862]
[1767454292334,0.002,3104.7,3104.1,2.65951248]
[1767454294038,0.002,3104.7,3104.2,8.86062244]
[1767454295608,0.002,3104.7,3104.3,2.41773862]
[1767454296211,0.002,3104.7,3104.4,5.63897299]
[1767454298436,0.002,3104.7,3104.4,2.41773862]
[1767454298617,0.002,3104.7,3104.5,0.5638982]
[1767454302322,2.26464624,3104.7,3104.3,3.22127168]
[1767454302522,0.002,3104.7,3104.3,3.22127168]
[1767454302842,0.002,3104.7,3104.4,3.22123016]
[1767454303338,0.002,3104.7,3104.2,2.41773862]
[1767454303529,2.26464624,3104.7,3104.1,0.24177386]
[1767454303727,0.002,3104.7,3104.2,5.63911407]
[1767454303933,0.002,3104.7,3104.3,3.22133582]
[1767454304330,0.002,3104.7,3104.2,5.639146]
[1767454305137,2.26464624,3104.7,3104.1,3.22151635]
[1767454305440,2.4915911,3104.7,3104.0,5.64110804]
[1767454305642,2.4915911,3104.7,3104.0,5.64113316]
[1767454305942,2.4915911,3104.7,3104.1,2.41773862]
[1767454306243,2.4915911,3104.7,3104.3,0.001]
[1767454313743,2.4915911,3104.7,3104.0,0.00180264]
[1767454313744,2.26264624,3104.6,3104.0,0.00180264]
[1767454314077,0.57125437,3104.5,3104.0,2.41954126]
[1767454314251,1.07394486,3104.7,3104.0,2.41954126]
[1767454314963,1.07394486,3104.7,3104.3,0.001]
[1767454316337,0.22894486,3104.7,3104.3,0.001]
[1767454322033,0.002,3104.7,3104.3,0.001]
[1767454326681,2.29383678,3104.7,3104.3,0.001]
[1767454333385,0.002,3104.7,3104.3,2.27450623]
[1767454333572,0.002,3104.8,3104.5,2.27350623]
[1767454333750,0.002,3104.8,3104.6,2.79667314]
[1767454337185,0.0028024,3104.9,3104.6,2.79667314]
[1767454337186,0.0028024,3104.9,3104.7,2.27350623]
[1767454339097,0.0028024,3104.9,3104.7,5.4944016]
[1767454339596,0.0028024,3104.9,3104.7,2.27350623]
[1767454342912,0.0028024,3104.9,3104.7,5.49441346]
[1767454343069,0.0028024,3104.9,3104.8,0.60175804]
[1767454349726,0.0028024,3104.9,3104.6,0.52416691]
[1767454351423,0.0028024,3104.9,3104.6,2.84602374]
[1767454351634,0.0028024,3104.9,3104.6,0.52416691]
[1767454361531,0.0028024,3104.9,3104.6,3.74514301]
[1767454361697,0.0028024,3104.9,3104.6,6.06699984]
[1767454361898,0.0028024,3104.9,3104.7,0.92891239]
[1767454363430,0.0028024,3104.9,3104.6,0.001]
[1767454368334,2.20518316,3105.0,3104.6,0.001]
[1767454371674,5.42583179,3105.0,3104.6,0.001]
[1767454371840,2.25238076,3104.9,3104.5,0.00180248]
[1767454372136,0.54730294,3104.8,3104.3,0.001]
[1767454372309,2.7996837,3104.8,3104.3,0.001]
[1767454374320,2.25238076,3104.8,3104.3,0.001]
[1767454374826,5.4732235,3104.8,3104.3,0.001]
[1767454375033,2.25238076,3104.7,3104.3,0.001]
[1767454375212,2.25238076,3104.7,3104.5,0.001]
[1767454375413,2.25238076,3104.7,3104.3,0.001]
[1767454379349,2.20238076,3104.7,3104.3,0.001]
[1767454379539,3.10018324,3104.9,3104.3,0.001]
[1767454379850,0.00280248,3104.9,3104.3,2.32285683]
[1767454380044,0.00280248,3104.9,3104.3,2.55514251]
[1767454380351,0.00280248,3104.9,3104.5,2.28335783]
[1767454383358,2.38732404,3104.9,3104.3,0.001]
[1767454384443,0.00280248,3104.9,3104.3,0.001]
[1767454384647,2.38732404,3104.9,3104.3,0.001]
[1767454384850,2.94832368,3104.9,3104.3,0.001]
[1767454395364,2.94832368,3104.9,3104.3,2.28435783]
[1767454395563,2.38732404,3104.9,3104.3,2.28435783]
[1767454396260,0.00280248,3104.9,3104.3,2.28435783]
[1767454396976,0.00280248,3104.9,3104.4,2.28335783]
[1767454398037,0.00280248,3104.9,3104.5,2.28335783]
[1767454398551,0.00280248,3104.9,3104.3,3.22230518]
[1767454398946,0.00280248,3104.9,3104.4,2.28335783]
[1767454405987,0.00280248,3104.9,3104.4,2.28435783]
[1767454406965,2.38732404,3104.9,3104.4,0.001]
[1767454407946,0.00280248,3104.9,3104.4,2.28435783]
[1767454414284,0.00280248,3104.9,3104.4,5.5055736]
[1767454414776,2.28813319,3104.9,3104.4,0.001]
[1767454426888,0.00280248,3104.9,3104.4,2.30054895]
[1767454443194,0.00280248,3104.9,3104.5,2.45897912]
[1767454450212,0.00280248,3104.9,3104.5,2.45997912]
[1767454450501,0.00280248,3104.9,3104.6,3.02719898]
[1767454450708,0.00280248,3104.9,3104.6,2.45897912]
[1767454462024,0.00280248,3104.9,3104.5,0.001]
[1767454462240,2.38730564,3104.9,3104.5,0.001]
[1767454462399,2.42756458,3104.9,3104.3,0.001]
[1767454462596,2.42756458,3104.9,3104.0,2.46078176]
[1767454462904,2.38450316,3104.7,3104.0,0.00180264]
[1767454463105,2.38450316,3104.6,3104.0,0.00180264]
[1767454465937,5.60554437,3104.6,3104.0,0.00180264]
[1767454466404,2.38450316,3104.5,3104.0,0.00180264]
[1767454470107,0.00080264,3104.4,3103.9,2.45897912]
[1767454470901,2.37927508,3104.4,3103.7,3.22196088]
[1767454471134,2.37927508,3104.4,3103.7,4.18881725]
[1767454471335,0.00080264,3104.4,3103.8,2.37875065]
[1767454472937,2.37927508,3104.4,3103.8,5.6006075]
[1767454473106,2.37927508,3104.4,3103.8,2.37875065]
[1767454474354,2.37927508,3104.4,3103.8,5.60059039]
[1767454474836,2.37927508,3104.4,3103.8,2.37875065]
[1767454475044,2.37927508,3104.4,3103.8,5.60060692]
[1767454476640,2.37927508,3104.4,3103.8,2.37875065]
[1767454477639,2.37927508,3104.4,3103.8,2.37975065]
[1767454478755,2.37847244,3104.3,3103.8,0.001]
[1767454481722,2.37847244,3104.2,3103.8,0.001]
[1767454485454,5.59991672,3104.2,3103.8,0.001]
[1767454485952,2.37847244,3104.2,3103.8,0.001]
[1767454488023,5.59991627,3104.2,3103.8,0.001]
[1767454488224,6.53831603,3104.2,3103.8,0.001]
[1767454488559,3.3168722,3104.2,3103.8,0.001]
[1767454490234,6.53832089,3104.2,3103.8,0.001]
[1767454491854,3.3168722,3104.2,3103.8,0.001]
[1767454492956,0.93839976,3104.2,3103.8,0.001]
[1767454493960,0.00280264,3104.4,3103.8,2.37975065]
[1767454495254,0.002,3104.2,3103.8,2.37975065]
[1767454500648,0.002,3104.2,3103.9,2.45658801]
[1767454501246,0.00280264,3104.4,3103.9,2.45658801]
[1767454504552,0.00280264,3104.4,3104.0,2.45658801]
[1767454505871,0.00280264,3104.4,3103.8,3.22281308]
[1767454506079,0.00280264,3104.4,3103.9,0.32228131]
[1767454506547,2.32771468,3104.4,3103.8,0.001]
[1767454507755,2.32771468,3104.4,3103.8,2.45758801]
[1767454510251,5.54896682,3104.4,3103.8,2.45758801]
[1767454511077,2.32771468,3104.4,3103.8,2.45758801]
[1767454514663,2.32771468,3104.4,3103.8,0.001]
[1767454516681,5.54897683,3104.4,3103.8,0.001]
[1767454518450,2.32491204,3104.3,3103.8,0.001]
[1767454527488,0.8798059,3104.4,3103.8,0.001]
[1767454527685,0.00280264,3104.4,3103.8,0.001]
[1767454527863,0.00280264,3104.4,3103.8,2.45758801]
[1767454528463,0.00280264,3104.4,3103.9,2.45658801]
[1767454529485,0.00280264,3104.4,3104.0,2.45658801]
[1767454533197,0.00280264,3104.4,3104.1,2.37721801]
[1767454542075,0.00280264,3104.4,3104.0,0.001]
[1767454543204,2.45085295,3104.4,3104.0,0.001]
[1767454543996,2.44805031,3104.3,3104.0,0.001]
[1767454544324,2.44805031,3104.3,3103.8,0.001]
[1767454546577,5.66941501,3104.3,3103.8,0.001]
[1767454547913,2.44805031,3104.3,3103.8,0.001]
[1767454548117,2.44805031,3104.2,3103.8,0.001]
[1767454549291,3.01527037,3104.2,3103.8,0.001]
[1767454551213,2.44805031,3104.1,3103.8,0.001]
[1767454551978,2.44805031,3104.1,3103.6,0.00080248]
[1767454558014,0.56722006,3104.2,3103.6,0.00080248]
[1767454558186,3.29305031,3104.3,3103.6,2.37802049]
[1767454559007,0.00280264,3104.4,3103.8,2.37721801]
[1767454559210,0.00280264,3104.4,3103.7,3.22196088]
[1767454559511,0.00280264,3104.4,3103.8,2.37721801]
[1767454559698,0.65450113,3104.4,3103.8,2.37721801]
[1767454561419,6.33145955,3104.4,3103.6,3.22282242]
[1767454561622,2.45571947,3104.3,3103.6,3.22282242]
[1767454561988,3.87574008,3104.4,3103.6,3.22282242]
[1767454561989,3.87574008,3104.4,3103.7,2.25439131]
[1767454562883,2.45571947,3104.3,3103.6,0.00080248]
[1767454563087,2.45571947,3104.3,3103.6,0.87097362]
[1767454564191,2.45571947,3104.3,3103.6,3.12536493]
[1767454566120,2.45571947,3104.3,3103.7,3.22196088]
[1767454566842,2.45571947,3104.3,3103.6,6.34738484]
[1767454568001,2.45571947,3104.3,3103.7,2.25439131]
[1767454569322,2.45771947,3104.3,3103.7,2.25439131]
[1767454572315,5.71932939,3104.3,3103.7,2.25439131]
[1767454572930,2.45571947,3104.2,3103.6,0.00080248]
[1767454573110,2.45571947,3104.2,3103.6,0.87095657]
[1767454574043,2.45571947,3104.1,3103.6,0.00080248]
[1767454574506,2.45571947,3103.9,3103.1,3.22925002]
[1767454574831,2.45571947,3103.9,3103.1,3.10039131]
[1767454575632,2.45571947,3103.9,3103.2,3.22418879]
[1767454575806,2.45571947,3103.9,3103.2,0.00180312]
[1767454576230,2.45571947,3103.9,3103.2,3.22427211]
[1767454576534,2.45571947,3103.8,3103.2,0.00180312]
[1767454576904,2.45571947,3103.8,3103.2,2.25619443]
[1767454577104,3.22247014,3104.0,3103.2,2.25619443]
[1767454577307,6.61708114,3104.0,3103.2,2.25619443]
[1767454578938,6.61708114,3104.0,3103.3,2.25439131]
[1767454580334,2.45571947,3103.9,3103.3,2.25439131]
[1767454581139,3.22185707,3103.8,3103.2,0.00180312]
[1767454581537,3.22185707,3103.8,3103.2,2.25619443]
[1767454582230,5.67757654,3103.8,3103.2,0.00180312]
[1767454582427,5.67757654,3103.8,3103.2,2.25619443]
[1767454582625,3.22185707,3103.8,3103.2,2.25619443]
[1767454583250,5.67754,3103.9,3103.2,2.25619443]
[1767454583430,2.45571947,3103.9,3103.2,5.47865516]
[1767454584023,2.45571947,3103.9,3103.3,2.25439131]
[1767454584222,3.20193019,3103.9,3103.3,2.25439131]
[1767454585945,6.42370797,3103.9,3103.3,2.25439131]
[1767454587715,6.42370797,3103.9,3103.3,2.25539131]
[1767454589045,3.9679885,3103.9,3103.3,2.25539131]
[1767454590215,3.9679885,3103.9,3103.3,0.001]
[1767454590216,2.37409783,3103.8,3103.3,0.001]
[1767454590417,2.41437234,3103.7,3103.2,0.00180312]
[1767454591243,0.81293477,3103.8,3103.2,2.45589587]
[1767454592149,4.0348786,3103.8,3103.2,2.45589587]
[1767454593050,0.81293477,3103.8,3103.2,2.45589587]
[1767454593253,3.96800526,3103.9,3103.2,2.45589587]
[1767454594025,0.74621072,3103.9,3103.3,2.45409275]
[1767454594834,3.96798605,3103.9,3103.3,2.45409275]
[1767454597858,0.04027321,3103.8,3103.3,2.45409275]
[1767454599061,3.96998605,3103.9,3103.3,2.45409275]
[1767454599239,0.95665578,3103.8,3103.3,2.45409275]
[1767454599625,0.002,3103.9,3103.2,3.22424438]
[1767454599956,0.002,3103.9,3103.3,6.44475236]
[1767454600143,2.37609783,3103.9,3103.3,3.22237618]
[1767454600338,2.37609783,3103.9,3103.4,0.83882301]
[1767454600841,2.37609783,3103.9,3103.4,4.06109351]
[1767454606567,2.37609783,3103.9,3103.4,0.83882301]
[1767454607260,2.37609783,3103.9,3103.4,4.06108865]
[1767454610365,2.37609783,3103.9,3103.4,0.83882301]
[1767454610569,2.37609783,3103.9,3103.3,3.22230831]
[1767454612074,2.37609783,3103.9,3103.4,3.22225688]
[1767454612236,2.37609783,3103.9,3103.2,0.96823725]
[1767454612441,2.37609783,3103.9,3103.2,4.19071557]
[1767454612642,2.37409783,3103.8,3103.2,0.00180312]
[1767454613150,2.37409783,3103.8,3103.2,3.22428053]
[1767454613354,2.37409783,3103.8,3103.2,3.96582485]
[1767454614269,2.37409783,3103.8,3103.2,0.74334744]
[1767454614468,5.59596731,3103.8,3103.2,0.74334744]
[1767454614766,2.37409783,3103.7,3103.2,0.00180312]
[1767454616474,2.37409783,3103.6,3103.2,0.00180312]
[1767454618959,2.37409783,3103.5,3103.2,0.00180312]
[1767454622183,0.845,3103.8,3103.2,0.97695398]
[1767454623981,5.60926103,3103.9,3103.2,0.97695398]
[1767454624189,2.38749041,3103.9,3103.2,4.19939283]
[1767454624392,5.60927506,3103.9,3103.2,0.97695398]
[1767454625197,2.38549041,3103.8,3103.2,0.97695398]
[1767454627087,2.38549041,3103.8,3103.2,4.19941332]
[1767454627289,0.002,3103.9,3103.3,0.97515086]
[1767454629296,0.002,3103.9,3103.3,4.19752239]
[1767454631090,0.002,3103.9,3103.3,0.97515086]
[1767454632001,2.38749041,3103.9,3103.2,0.00180312]
[1767454632195,2.38549041,3103.8,3103.2,0.00180312]
[1767454632490,2.38549041,3103.8,3103.2,4.19942455]
[1767454632883,0.002,3103.9,3103.3,0.97515086]
[1767454633281,0.002,3103.9,3103.3,4.1974902]
[1767454633488,0.002,3103.9,3103.4,4.19740689]
[1767454633793,0.002,3103.9,3103.5,0.97515086]
[1767454636901,0.002,3103.9,3103.5,4.19730511]
[1767454637200,0.002,3103.9,3103.6,0.97515086]
[1767454642608,0.002,3103.9,3103.6,4.19718161]
[1767454643905,0.00080248,3104.0,3103.6,4.19718161]
[1767454644111,0.00080248,3104.0,3103.7,1.71708422]
[1767454645690,0.002,3103.9,3103.7,1.71708422]
[1767454646919,0.002,3103.9,3103.7,4.93902383]
[1767454652911,2.38749041,3104.3,3103.7,4.93902383]
[1767454657501,2.38749041,3104.3,3103.7,3.96387297]
[1767454657816,2.38749041,3104.3,3103.6,0.00080256]
[1767454657817,2.38749041,3104.3,3103.6,3.22282676]
[1767454659107,2.38749041,3104.3,3103.6,6.44489145]
[1767454660416,2.38749041,3104.3,3103.6,4.19797762]
[1767454662723,2.38749041,3104.3,3103.6,3.22282676]
[1767454663893,2.38749041,3104.3,3103.6,0.00080256]
[1767454669928,2.38749041,3104.3,3103.7,0.64461396]
[1767454670528,2.38749041,3104.3,3103.8,3.22185707]
[1767454678934,2.38749041,3104.3,3103.8,6.44371414]
[1767454681031,0.00280264,3104.4,3103.8,10.36264289]
[1767454681230,2.29228864,3104.5,3103.8,10.36264289]
[1767454681434,0.00280248,3104.9,3104.2,0.97515086]
[1767454681634,0.00280248,3104.9,3104.5,6.44226122]
[1767454681944,2.29428864,3105.1,3104.5,6.44226122]
[1767454682138,2.29428864,3105.1,3104.5,7.36821464]
[1767454682440,2.29428864,3105.1,3104.5,0.00080256]
[1767454682602,2.29428864,3105.1,3104.5,0.64513457]
[1767454683635,2.29428864,3105.1,3104.5,3.8662242]
[1767454685328,2.29428864,3105.1,3104.5,0.64513457]
[1767454686069,2.29428864,3105.1,3104.5,3.86625857]
[1767454686985,2.29228864,3104.9,3104.5,0.64513457]
[1767454696356,2.29428864,3105.1,3104.5,0.00080256]
[1767454696729,2.29228864,3105.0,3104.5,0.00080256]
[1767454696933,3.22252296,3105.1,3104.5,0.00080256]
[1767454696934,2.29228864,3104.8,3104.5,0.00080256]
[1767454701359,0.002,3104.9,3104.5,0.00080256]
[1767454701944,1.74428864,3105.0,3104.5,0.00080256]
[1767454702532,0.002,3105.1,3104.5,0.00080256]
[1767454702852,0.002,3105.1,3104.6,2.65366945]
[1767454704766,0.002,3105.1,3104.8,2.35921141]
[1767454705368,0.002,3105.3,3104.8,2.35921141]
[1767454707069,0.002,3105.3,3104.9,3.22071564]
[1767454707950,0.002,3105.3,3104.9,6.44143128]
[1767454708140,0.002,3105.3,3105.0,0.88006427]
[1767454709761,0.002,3105.3,3105.1,3.22050819]
[1767454713373,0.00080152,3105.4,3105.1,3.22050819]
[1767454713948,2.32143151,3105.8,3105.2,2.25071827]
[1767454715345,1e-08,3105.7,3105.2,2.25071827]
[1767454715675,1e-08,3105.7,3105.3,0.94323687]
[1767454716249,1e-08,3105.7,3105.4,3.22019707]
[1767454716650,2.32143152,3105.7,3105.2,3.22034568]
[1767454717184,2.32143152,3105.7,3105.3,3.22029718]
[1767454718548,2.32143152,3105.7,3105.1,6.44101638]
[1767454718748,2.32143152,3105.7,3105.1,7.39827643]
[1767454718949,1e-08,3105.7,3105.1,9.6489947]
[1767454720583,1e-08,3105.7,3105.1,12.59277259]
[1767454721091,0.00080016,3106.0,3105.2,2.26480915]
[1767454721286,0.00080016,3106.0,3105.4,2.25071827]
[1767454722381,0.00080016,3106.0,3105.5,3.22009338]
[1767454723386,0.002,3105.7,3105.5,3.22009338]
[1767454724287,0.00080016,3106.0,3105.5,6.44018676]
[1767454724990,0.00080016,3106.0,3105.5,8.69090503]
[1767454725191,0.00080016,3106.0,3105.6,3.11980877]
[1767454725763,0.00080016,3106.0,3105.6,0.8690905]
[1767454727069,0.00080016,3106.0,3105.6,4.08903884]
[1767454729864,0.00080016,3106.0,3105.6,0.8690905]
[1767454730066,0.00080016,3106.0,3105.4,3.2201673]
[1767454731191,0.00080016,3106.0,3105.5,3.2200635]
[1767454731582,0.00080016,3106.0,3105.3,6.4405715]
[1767454731961,0.00080016,3106.0,3105.3,3.22027073]
[1767454732261,0.00080016,3106.0,3105.3,3.22127073]
[1767454732459,2.32423167,3106.0,3105.4,0.86923688]
[1767454732980,0.00280016,3106.0,3105.5,2.25071827]
[1767454733593,0.00280016,3106.0,3105.6,3.21998969]
[1767454734476,2.32423167,3106.0,3105.6,3.21998969]
[1767454735693,2.32423167,3106.0,3105.5,3.22004685]
[1767454735894,2.32423167,3106.0,3105.5,4.17617532]
[1767454736997,2.32423167,3106.0,3105.5,0.95612847]
[1767454737310,2.32423167,3106.0,3105.4,3.22015133]
[1767454738099,2.32423167,3106.0,3105.3,0.001]
[1767454742310,2.49775716,3105.9,3105.3,0.001]
[1767454743288,2.49775716,3105.8,3105.3,0.001]
[1767454746306,0.00280016,3106.0,3105.4,2.32489882]
[1767454746506,0.00280016,3106.0,3105.5,2.87951637]
[1767454748406,0.00280016,3106.0,3105.6,3.21998969]
[1767454749204,2.50055732,3106.0,3105.6,3.21998969]
[1767454751210,2.50055732,3106.0,3105.5,0.55461755]
[1767454751513,2.50055732,3106.0,3105.4,3.22013949]
[1767454751711,2.49775716,3105.9,3105.3,3.22126281]
[1767454751879,2.49775716,3105.9,3105.4,3.22018847]
[1767454752085,2.49775716,3105.9,3105.3,3.94993854]
[1767454752813,2.49775716,3105.9,3105.4,3.22015598]
[1767454754588,2.49775716,3105.9,3105.3,3.94992738]
[1767454755714,2.49775716,3105.9,3105.3,3.22125317]
[1767454761128,2.49775716,3105.9,3105.3,0.001]
[1767454762624,2.49775716,3105.9,3105.3,2.32589882]
[1767454767131,2.49775716,3105.9,3105.3,5.54618465]
[1767454769139,0.00280016,3106.0,3105.3,5.54618465]
[1767454769342,3.22240409,3106.0,3105.3,2.32589882]
[1767454769583,5.72016125,3106.0,3105.3,2.32589882]
[1767454770145,2.42937402,3105.9,3105.3,2.32589882]
[1767454770646,2.42937402,3105.9,3105.3,0.001]
[1767454771345,2.47448483,3105.8,3105.3,0.001]
[1767454771707,0.64968107,3105.9,3105.3,2.30939213]
[1767454772113,3.1241659,3105.9,3105.3,2.30939213]
[1767454773844,3.1241659,3105.9,3105.3,5.52968346]
[1767454774023,0.00280016,3106.0,3105.4,2.30839213]
[1767454776845,0.00280016,3106.0,3105.4,5.52849856]
[1767454777245,0.00280016,3106.0,3105.5,2.30839213]
[1767454777936,0.002,3105.9,3105.5,2.30839213]
[1767454778140,0.002,3105.9,3105.5,3.18337112]
[1767454778345,0.002,3105.9,3105.6,2.30839213]
[1767454785755,0.002,3105.9,3105.5,0.87497899]
[1767454785939,2.47648483,3105.9,3105.5,0.87497899]
[1767454786141,2.47648483,3105.9,3105.3,3.22125409]
[1767454787155,2.47648483,3105.9,3105.3,0.001]
[1767454787357,2.47448483,3105.7,3105.3,0.001]
[1767454791172,2.47448483,3105.6,3105.3,0.001]
[1767454791364,3.04392256,3105.6,3105.3,0.001]
[1767454791539,2.47448483,3105.6,3105.3,0.001]
[1767454796258,2.47448483,3105.5,3105.0,0.0018016]
[1767454796769,2.47448483,3105.5,3105.3,0.001]
[1767454800973,5.69457854,3105.5,3105.3,0.001]
[1767454801269,2.88588669,3105.4,3105.3,0.001]
[1767454802858,6.10608376,3105.4,3105.3,0.001]
[1767454803065,3.82990738,3105.4,3105.0,0.0018016]
[1767454803459,3.78965492,3105.4,3105.0,0.0018016]
[1767454803667,6.10608376,3105.4,3105.0,0.0018016]
[1767454803966,2.92703722,3105.3,3105.0,0.0018016]
[1767454804347,2.96729097,3105.3,3105.0,0.0018016]
[1767454804566,2.92703722,3105.3,3105.0,0.0018016]
[1767454805244,2.96729097,3105.3,3105.0,0.0018016]
[1767454806274,2.92703722,3105.3,3105.0,0.0018016]
[1767454806472,2.96729097,3105.3,3105.0,0.0018016]
[1767454807373,2.31642884,3105.2,3105.0,0.0018016]
[1767454807868,2.31642884,3105.1,3105.0,0.0018016]
[1767454809375,0.67569459,3105.2,3105.0,0.0018016]
[1767454813571,2.99212343,3105.2,3105.0,0.0018016]
[1767454817483,2.31642884,3105.1,3105.0,0.0018016]
[1767454818074,2.35668519,3105.1,3105.0,0.0018016]
[1767454818275,3.30420333,3105.1,3104.5,2.27446138]
[1767454818469,0.00080256,3104.9,3104.5,2.27446138]
[1767454820779,0.00080256,3104.9,3104.2,0.845]
[1767454821092,0.00080256,3104.9,3104.3,2.39021777]
[1767454821592,2.35749034,3104.9,3104.5,0.001]
[1767454821796,0.78945851,3104.8,3104.5,0.001]
[1767454822161,2.35749034,3104.9,3104.5,0.001]
[1767454823690,2.3172314,3104.9,3104.5,0.001]
[1767454824367,2.31642884,3104.8,3104.5,0.001]
[1767454828295,2.35668908,3104.8,3104.5,0.001]
[1767454828697,2.31642884,3104.8,3104.5,0.001]
[1767454828903,2.87022507,3104.8,3104.5,0.001]
[1767454829700,6.09105544,3104.8,3104.5,0.001]
[1767454830374,2.49884088,3104.7,3104.5,0.001]
[1767454831295,3.22092855,3104.7,3104.5,0.001]
[1767454831500,2.49884088,3104.6,3104.5,0.001]
[1767454831706,3.12619745,3104.6,3104.5,0.001]
[1767454834405,2.49884088,3104.5,3104.0,0.00180272]
[1767454835801,2.49884088,3104.4,3104.0,0.00180272]
[1767454837408,5.72009185,3104.4,3104.0,0.00180272]
[1767454838302,3.22115894,3104.5,3104.0,0.00180272]
[1767454838920,2.49884088,3104.5,3104.0,0.00180272]
[1767454839078,0.24988409,3104.4,3104.0,0.00180272]
[1767454840284,2.74872497,3104.4,3104.0,0.00180272]
[1767454840492,3.19211153,3104.4,3103.8,0.001]
[1767454840696,2.49884088,3104.3,3103.8,0.001]
[1767454840895,3.06801639,3104.2,3103.6,0.00180256]
[1767454841097,3.22154569,3104.1,3103.6,0.00180256]
[1767454843217,3.06801639,3104.2,3103.6,0.00180256]
[1767454843417,3.06801639,3104.2,3103.6,2.31820765]
[1767454843584,0.56917551,3104.2,3103.6,2.31820765]
[1767454845582,3.79062073,3104.2,3103.6,2.31820765]
[1767454846215,0.37906207,3104.1,3103.6,2.31820765]
[1767454846397,2.87790295,3104.1,3103.6,0.00180256]
[1767454846593,2.91817227,3104.1,3103.6,0.00180256]
[1767454847019,2.87790295,3104.1,3103.6,0.00180256]
[1767454847317,2.49884088,3103.9,3103.6,0.00180256]
[1767454848704,2.82983435,3103.9,3103.6,0.00180256]
[1767454854326,0.33099347,3103.9,3103.6,0.00180256]
[1767454855630,3.60065614,3104.1,3103.6,0.00180256]
[1767454855930,0.37906207,3104.1,3103.6,2.31820765]
[1767454858617,1.22406207,3104.1,3103.6,2.31820765]
[1767454861238,1.22406207,3104.1,3103.6,0.00180256]
[1767454861729,1.22406207,3104.1,3103.6,2.29441394]
[1767454862121,1.22406207,3104.1,3103.6,0.00180256]
[1767454862711,1.22406207,3104.1,3103.6,2.29441394]
[1767454863236,0.37906207,3104.1,3103.6,2.29441394]
[1767454863533,1.41417551,3104.2,3103.6,2.29441394]
[1767454863914,0.56917551,3104.2,3103.6,5.5164758]
[1767454864113,1.41417551,3104.2,3103.6,5.5164758]
[1767454864642,0.56917551,3104.2,3103.6,5.5164758]
[1767454864822,1.41417551,3104.2,3103.6,5.5164758]
[1767454866441,2.38689343,3104.1,3103.6,0.00180256]
[1767454867635,1.41417551,3104.2,3103.6,0.00180256]
[1767454868022,1.41417551,3104.2,3103.6,2.29441394]
[1767454868426,0.002,3104.1,3103.6,2.29441394]